bitfinex-derivatives/quotes_BTCF0:USTF0_20240923
["timestamp","ask_amount","ask_price","bid_price","bid_amount"]
[1727083089688,0.132278,63553.0,63551.0,0.3608]
[1727083089885,0.133278,63553.0,63551.0,0.3608]
[1727083090580,0.133278,63553.0,63551.0,0.43948]
[1727083091085,0.132278,63553.0,63552.0,0.078679]
[1727083091282,0.128278,63553.0,63552.0,0.078679]
[1727083091509,0.0496,63553.0,63552.0,0.078679]
[1727083091791,0.0526,63553.0,63552.0,0.078679]
[1727083091976,0.131279,63553.0,63551.0,0.3608]
[1727083092185,0.078679,63552.0,63551.0,0.3608]
[1727083093590,0.0536,63553.0,63551.0,0.3608]
[1727083093784,0.0536,63553.0,63552.0,0.078679]
[1727083094488,0.1559148,63554.0,63552.0,0.34456514]
[1727083094691,0.1559148,63554.0,63552.0,0.078679]
[1727083095389,0.004,63553.0,63552.0,0.078679]
[1727083096099,0.0812378,63554.0,63553.0,0.078678]
[1727083096592,0.0822378,63554.0,63553.0,0.078678]
[1727083097189,0.0832378,63554.0,63553.0,0.078678]
[1727083097685,0.0792378,63554.0,63553.0,0.078678]
[1727083098400,0.0842378,63554.0,63553.0,0.078678]
[1727083100404,0.007,63554.0,63553.0,0.287356]
[1727083100592,0.0037,63560.0,63559.0,0.078671]
[1727083100789,0.04829429,63560.0,63559.0,0.3608]
[1727083101001,0.078662,63566.0,63563.0,0.078665]
[1727083101198,0.0524,63567.0,63564.0,0.078664]
[1727083101199,0.04829281,63565.0,63564.0,0.078664]
[1727083102690,0.013,63565.0,63564.0,0.078664]
[1727083103105,0.027,63565.0,63564.0,0.078664]
[1727083109793,0.13171928,63565.0,63564.0,0.078664]
[1727083110394,0.13171928,63565.0,63564.0,0.157328]
[1727083110602,0.27937827,63565.0,63564.0,1.590088]
[1727083110802,0.33580626,63565.0,63564.0,1.590088]
[1727083111008,0.0037,63573.0,63572.0,0.078654]
[1727083111308,0.078647,63578.0,63577.0,0.078648]
[1727083111997,0.0494,63580.0,63579.0,0.078646]
[1727083112703,0.014,63578.0,63572.0,0.3618]
[1727083113003,0.014,63578.0,63575.0,0.07865]
[1727083114104,0.05641936,63577.0,63575.0,0.07865]
[1727083114306,0.05641936,63576.0,63575.0,0.07865]
[1727083114807,0.05641936,63576.0,63575.0,0.07965]
[1727083115204,0.05641936,63576.0,63575.0,0.08065]
[1727083115607,0.06041936,63576.0,63575.0,0.08065]
[1727083115996,0.11870339,63576.0,63575.0,0.08065]
[1727083116203,0.1187032,63576.0,63575.0,0.08065]
[1727083117696,0.014,63576.0,63575.0,0.08065]
[1727083132726,0.11869964,63576.0,63575.0,0.08065]
[1727083135124,0.11869964,63576.0,63575.0,0.44145]
[1727083135829,0.27734864,63576.0,63575.0,0.3628]
[1727083136032,0.21496999,63576.0,63570.0,0.0037]
[1727083136231,0.21496999,63576.0,63569.0,0.078658]
[1727083136232,0.08,63571.0,63569.0,0.078658]
[1727083136530,0.16925722,63570.0,63569.0,0.078658]
[1727083136739,0.12096999,63570.0,63569.0,0.078658]
[1727083137828,0.12496999,63570.0,63569.0,0.079658]
[1727083138126,0.13596999,63570.0,63569.0,0.080658]
[1727083139724,0.015,63570.0,63569.0,0.080658]
[1727083145038,0.015,63570.0,63567.0,0.40782136]
[1727083145039,0.015,63570.0,63568.0,0.04702136]
[1727083145732,0.015,63570.0,63567.0,0.291458]
[1727083145733,0.015,63570.0,63569.0,0.12567936]
[1727083146235,0.015,63570.0,63569.0,0.078658]
[1727083146627,0.015,63570.0,63569.0,0.157316]
[1727083146830,0.011,63570.0,63569.0,0.157316]
[1727083147039,0.018,63570.0,63569.0,0.158316]
[1727083147431,0.012,63570.0,63569.0,0.158316]
[1727083147638,0.018,63570.0,63569.0,0.159316]
[1727083147830,0.0017057,63570.0,63569.0,1.71780302]
[1727083148141,0.0017057,63570.0,63569.0,1.670694]
[1727083148648,0.0017057,63570.0,63569.0,1.73338914]
[1727083148834,7e-07,63570.0,63569.0,1.73338914]
[1727083149144,7e-07,63570.0,63569.0,1.86338914]
[1727083149945,0.0110007,63570.0,63569.0,1.86338914]
[1727083150146,0.013,63570.0,63569.0,1.86338914]
[1727083150354,0.013,63570.0,63569.0,1.800694]
[1727083153546,0.013,63570.0,63569.0,1.50258914]
[1727083153749,0.013,63570.0,63569.0,2.22418914]
[1727083155039,0.06127626,63570.0,63569.0,2.161494]
[1727083157248,0.06127626,63570.0,63569.0,2.18003579]
[1727083158138,0.06127652,63570.0,63569.0,2.18003579]
[1727083158742,5.2e-07,63570.0,63569.0,2.18003579]
[1727083159748,5.2e-07,63570.0,63569.0,2.17903579]
[1727083159955,5.2e-07,63570.0,63569.0,2.19003579]
[1727083160248,5.2e-07,63570.0,63569.0,2.19803579]
[1727083160447,5.2e-07,63570.0,63569.0,2.22669379]
[1727083164554,5.2e-07,63570.0,63569.0,2.27669379]
[1727083165764,5.2e-07,63570.0,63569.0,2.30128484]
[1727083166655,5.2e-07,63570.0,63569.0,2.30428484]
[1727083166956,5.2e-07,63577.0,63576.0,0.235947]
[1727083167256,5.2e-07,63577.0,63576.0,0.805396]
[1727083167447,5.2e-07,63577.0,63576.0,1.877276]
[1727083168344,5.2e-07,63577.0,63576.0,1.883276]
[1727083169256,5.2e-07,63577.0,63576.0,1.892276]
[1727083169954,5.2e-07,63577.0,63576.0,2.253076]
[1727083170543,5.2e-07,63577.0,63576.0,1.181196]
[1727083171847,5.2e-07,63577.0,63576.0,0.589749]
[1727083172042,5.2e-07,63577.0,63576.0,0.668398]
[1727083174662,5.2e-07,63577.0,63576.0,0.439449]
[1727083174849,5.2e-07,63577.0,63576.0,0.078649]
[1727083175045,5.2e-07,63577.0,63576.0,0.439449]
[1727083183463,5.2e-07,63577.0,63576.0,0.078649]
[1727083183662,5.2e-07,63577.0,63576.0,0.439449]
[1727083185164,0.10468898,63577.0,63576.0,0.439449]
[1727083187169,0.10468846,63577.0,63576.0,0.439449]
[1727083187652,0.16923415,63577.0,63576.0,0.3608]
[1727083188065,0.12095707,63577.0,63576.0,0.439449]
[1727083189851,0.12095707,63577.0,63576.0,0.078649]
[1727083190071,0.12095707,63577.0,63576.0,0.439449]
[1727083190670,0.12095707,63577.0,63576.0,0.078649]
[1727083191059,0.12095707,63577.0,63576.0,0.439449]
[1727083192458,0.12095707,63577.0,63576.0,0.518098]
[1727083192659,0.3723437,63577.0,63576.0,0.518098]
[1727083192875,0.42061793,63577.0,63576.0,0.518098]
[1727083193063,0.25138663,63577.0,63576.0,0.518098]
[1727083193366,0.25138663,63577.0,63576.0,0.642447]
[1727083193576,0.0037,63584.0,63576.0,0.4065]
[1727083193765,0.0951,63587.0,63583.0,0.519441]
[1727083193766,0.0988,63587.0,63583.0,0.519441]
[1727083193962,0.0988,63587.0,63586.0,0.158637]
[1727083193963,0.0951,63587.0,63586.0,0.158637]
[1727083194972,0.0971,63587.0,63586.0,0.158637]
[1727083195475,0.0037,63592.0,63591.0,0.078631]
[1727083195685,0.0475,63594.0,63591.0,0.4408]
[1727083197271,0.0475,63594.0,63593.0,0.078628]
[1727083197862,0.0515,63594.0,63593.0,0.078628]
[1727083198569,0.0515,63594.0,63593.0,0.079628]
[1727083199383,0.0515,63594.0,63593.0,0.080628]
[1727083200172,0.22069809,63594.0,63593.0,0.07064625]
[1727083200801,0.22069809,63594.0,63593.0,0.002]
[1727083200985,1.37108509,63594.0,63593.0,0.002]
[1727083201282,1.44971209,63594.0,63585.0,0.0037]
[1727083201582,0.08,63586.0,63583.0,0.3608]
[1727083201778,0.16919809,63585.0,63583.0,0.3608]
[1727083201982,0.16919809,63584.0,63583.0,0.3608]
[1727083202364,0.29919809,63584.0,63583.0,0.3608]
[1727083203169,0.37783809,63584.0,63583.0,0.3608]
[1727083203880,0.37783809,63584.0,63583.0,0.3618]
[1727083204776,1.81547809,63584.0,63583.0,0.001]
[1727083204973,0.078647,63578.0,63577.0,0.0037]
[1727083205280,0.1209313,63578.0,63577.0,0.0693204]
[1727083206968,0.4867313,63578.0,63577.0,0.0703204]
[1727083208171,0.3658,63578.0,63577.0,0.0703204]
[1727083209182,0.3658,63578.0,63577.0,0.2003204]
[1727083209377,0.3658,63578.0,63577.0,0.2013204]
[1727083209577,0.005,63578.0,63577.0,0.2013204]
[1727083209777,0.005,63578.0,63577.0,0.17904449]
[1727083209983,0.005,63578.0,63577.0,0.132]
[1727083210972,0.005,63578.0,63577.0,0.181]
[1727083211173,0.005,63578.0,63577.0,0.258648]
[1727083211371,0.439429,63593.0,63584.0,0.07864]
[1727083211575,0.078632,63591.0,63584.0,0.13]
[1727083211783,0.078632,63590.0,63589.0,0.078633]
[1727083213677,0.444432,63590.0,63589.0,0.079633]
[1727083218585,0.3658,63590.0,63589.0,0.079633]
[1727083218785,0.005,63590.0,63589.0,0.079633]
[1727083219179,0.005,63590.0,63589.0,0.158266]
[1727083223183,0.10966559,63590.0,63589.0,0.158266]
[1727083224195,0.10966614,63590.0,63589.0,0.158266]
[1727083228987,0.1096653,63590.0,63589.0,0.158266]
[1727083230197,0.005,63590.0,63589.0,0.158266]
[1727083234192,0.005,63590.0,63589.0,0.708659]
[1727083234397,0.005,63590.0,63589.0,0.788659]
[1727083235404,0.005,63590.0,63589.0,1.388659]
[1727083235708,0.0462,63611.0,63610.0,0.078607]
[1727083235889,0.0462,63611.0,63610.0,0.158607]
[1727083236399,0.0462,63611.0,63610.0,0.078607]
[1727083236998,0.0462,63611.0,63610.0,0.080607]
[1727083236999,0.0512,63611.0,63610.0,0.080607]
[1727083238405,0.22035483,63611.0,63610.0,0.05394803]
[1727083240007,0.15583939,63611.0,63610.0,0.05394803]
[1727083241805,0.22035483,63611.0,63610.0,0.05394803]
[1727083243409,0.22035278,63611.0,63610.0,0.05394803]
[1727083243619,0.22035278,63611.0,63609.0,0.09547353]
[1727083243909,0.16915278,63610.0,63609.0,0.17408253]
[1727083245310,0.0512,63611.0,63610.0,0.078607]
[1727083246407,0.0462,63611.0,63610.0,0.078607]
[1727083247115,0.0502,63611.0,63610.0,0.080607]
[1727083253318,0.09845312,63611.0,63610.0,0.080607]
[1727083254021,0.17705912,63611.0,63610.0,0.080607]
[1727083254221,0.09845312,63611.0,63610.0,0.080607]
[1727083256417,0.09845312,63611.0,63610.0,0.160607]
[1727083257922,0.09845303,63611.0,63610.0,0.160607]
[1727083260328,0.0502,63611.0,63610.0,0.160607]
[1727083260717,0.128806,63611.0,63610.0,0.160607]
[1727083261030,0.0502,63611.0,63610.0,0.160607]
[1727083261423,0.128806,63611.0,63610.0,0.160607]
[1727083261617,0.0502,63611.0,63610.0,0.160607]
[1727083262321,0.128806,63611.0,63610.0,0.160607]
[1727083263218,0.128806,63611.0,63610.0,0.080607]
[1727083263419,0.128806,63611.0,63610.0,0.1276247]
[1727083263420,0.208806,63611.0,63610.0,0.1276247]
[1727083263620,0.208806,63611.0,63610.0,0.080607]
[1727083264324,0.208806,63611.0,63610.0,0.1276247]
[1727083265519,0.208806,63611.0,63610.0,0.080607]
[1727083266732,0.208806,63611.0,63610.0,0.12765918]
[1727083266926,0.208806,63611.0,63610.0,0.04905218]
[1727083267121,0.208806,63611.0,63610.0,0.002]
[1727083268125,0.208806,63611.0,63610.0,0.04905218]
[1727083269119,0.208806,63611.0,63610.0,0.12765918]
[1727083270930,0.208806,63611.0,63610.0,0.080607]
[1727083271334,0.128806,63611.0,63610.0,0.080607]
[1727083275544,0.0502,63611.0,63610.0,0.080607]
[1727083276252,0.128806,63611.0,63610.0,0.080607]
[1727083278752,0.0522526,63611.0,63610.0,0.441407]
[1727083280946,0.05224982,63611.0,63610.0,0.441407]
[1727083283459,0.004,63611.0,63610.0,0.50413299]
[1727083283849,0.004,63611.0,63610.0,0.441407]
[1727083284268,0.004,63611.0,63610.0,0.520014]
[1727083285054,0.004,63611.0,63610.0,0.58269877]
[1727083285456,0.004,63611.0,63610.0,0.520014]
[1727083287454,0.004,63611.0,63610.0,0.58269077]
[1727083287653,0.004,63611.0,63610.0,0.520014]
[1727083289360,0.004,63611.0,63610.0,0.58268695]
[1727083290562,0.004,63611.0,63610.0,0.520014]
[1727083292560,0.0037,63618.0,63617.0,0.157198]
[1727083292761,0.07859,63624.0,63617.0,0.50344691]
[1727083292969,0.078586,63628.0,63623.0,0.08]
[1727083293467,0.078586,63628.0,63627.0,0.078586]
[1727083294365,0.080586,63628.0,63627.0,0.078586]
[1727083294867,0.07859,63624.0,63623.0,0.160591]
[1727083295061,0.07859,63624.0,63623.0,0.080591]
[1727083295271,0.07859,63624.0,63623.0,0.079591]
[1727083295769,0.07859,63624.0,63623.0,0.001]
[1727083296359,0.078594,63621.0,63620.0,0.078595]
[1727083297165,0.078594,63621.0,63615.0,0.0037]
[1727083297166,0.0786,63616.0,63615.0,0.0037]
[1727083297360,0.4394,63616.0,63615.0,0.078601]
[1727083298362,0.0786,63616.0,63615.0,0.078601]
[1727083298564,0.0786,63616.0,63615.0,0.079601]
[1727083299363,0.0786,63616.0,63615.0,0.080601]
[1727083299769,0.0786,63616.0,63615.0,0.002]
[1727083300472,0.12685196,63616.0,63615.0,0.002]
[1727083301757,0.56765032,63616.0,63615.0,0.002]
[1727083301955,0.62403235,63616.0,63615.0,0.002]
[1727083303473,0.54403235,63616.0,63615.0,0.002]
[1727083303771,0.18323235,63616.0,63615.0,0.160601]
[1727083303966,0.48765032,63616.0,63615.0,0.160601]
[1727083307472,0.12685032,63616.0,63615.0,0.160601]
[1727083308478,0.12685032,63616.0,63615.0,0.22324791]
[1727083308479,0.0786,63616.0,63615.0,0.22324791]
[1727083309273,0.4394,63616.0,63615.0,0.160601]
[1727083309969,0.0786,63616.0,63615.0,0.160601]
[1727083310170,0.4394,63616.0,63615.0,0.160601]
[1727083312876,0.0786,63616.0,63615.0,0.160601]
[1727083313072,0.4394,63616.0,63615.0,0.160601]
[1727083313268,0.0786,63616.0,63615.0,0.160601]
[1727083313473,0.4394,63616.0,63615.0,0.160601]
[1727083313876,0.0786,63616.0,63615.0,0.160601]
[1727083314179,0.4394,63616.0,63615.0,0.160601]
[1727083314971,0.4394,63616.0,63615.0,0.002]
[1727083315579,0.56765269,63616.0,63615.0,0.002]
[1727083315783,0.62403558,63616.0,63615.0,0.002]
[1727083320781,0.62403558,63616.0,63611.0,0.0037]
[1727083320782,0.078605,63612.0,63611.0,0.0037]
[1727083320988,0.20685812,63612.0,63607.0,0.078611]
[1727083321285,0.08,63609.0,63607.0,0.078611]
[1727083321584,0.078612,63606.0,63605.0,0.3608]
[1727083321788,0.12686512,63606.0,63605.0,0.3608]
[1727083322282,0.12686512,63606.0,63605.0,0.4408]
[1727083322487,0.078612,63606.0,63605.0,0.4408]
[1727083322875,0.079612,63606.0,63605.0,0.08]
[1727083325183,0.079612,63606.0,63605.0,0.158614]
[1727083326585,0.078615,63604.0,63603.0,0.08]
[1727083326781,0.439415,63604.0,63603.0,0.08]
[1727083327085,0.439415,63604.0,63602.0,0.078617]
[1727083327592,0.439415,63604.0,63602.0,0.158617]
[1727083327786,0.078616,63603.0,63602.0,0.078617]
[1727083327989,0.07862,63600.0,63598.0,0.15699093]
[1727083328181,0.078621,63599.0,63598.0,0.078622]
[1727083328992,0.08,63602.0,63601.0,0.078617]
[1727083328993,0.078617,63602.0,63601.0,0.078617]
[1727083329287,0.078617,63602.0,63601.0,0.22123666]
[1727083330492,0.03928023,63602.0,63601.0,0.28043681]
[1727083332079,0.03928023,63602.0,63601.0,0.12181981]
[1727083332277,0.03928023,63602.0,63601.0,0.08025288]
[1727083332480,0.0037,63609.0,63608.0,0.07861]
[1727083332678,0.078606,63612.0,63611.0,0.078605]
[1727083332982,0.0037,63616.0,63611.0,0.078605]
[1727083332983,0.078601,63616.0,63611.0,0.19980099]
[1727083333287,0.439398,63618.0,63617.0,0.078599]
[1727083333687,0.4408,63618.0,63614.0,0.04693147]
[1727083333879,0.078602,63614.0,63613.0,0.04693147]
[1727083334395,0.158602,63614.0,63613.0,0.04693147]
[1727083335097,0.158602,63614.0,63613.0,0.04793147]
[1727083336495,0.158602,63614.0,63613.0,0.04893147]
[1727083337491,0.26324341,63614.0,63613.0,0.002]
[1727083339294,0.26324368,63614.0,63613.0,0.002]
[1727083340390,0.078609,63609.0,63608.0,0.07861]
[1727083340592,0.078612,63606.0,63605.0,0.3608]
[1727083340794,0.48766765,63606.0,63605.0,0.078614]
[1727083341092,0.56766765,63606.0,63605.0,0.078614]
[1727083341301,0.62405368,63606.0,63605.0,0.078614]
[1727083342983,0.62505368,63606.0,63605.0,0.078614]
[1727083343183,0.62605368,63606.0,63605.0,0.078614]
[1727083344687,0.078617,63603.0,63601.0,0.0037]
[1727083344993,0.04825565,63602.0,63601.0,0.078619]
[1727083345588,0.078617,63603.0,63601.0,0.078619]
[1727083345589,0.078617,63603.0,63602.0,0.078617]
[1727083345894,0.4428,63606.0,63605.0,0.078614]
[1727083345895,0.3618,63606.0,63605.0,0.078614]
[1727083346089,0.3618,63606.0,63605.0,0.158614]
[1727083346090,0.3608,63606.0,63605.0,0.158614]
[1727083347499,0.3618,63606.0,63605.0,0.158614]
[1727083348099,0.001,63606.0,63605.0,0.23691235]
[1727083348397,0.0037,63611.0,63610.0,0.078607]
[1727083348593,0.0037,63616.0,63615.0,0.078601]
[1727083348788,0.078599,63617.0,63616.0,0.0786]
[1727083350098,0.079599,63617.0,63616.0,0.0796]
[1727083350390,0.079599,63617.0,63616.0,0.14222923]
[1727083351700,0.080599,63617.0,63616.0,0.14322923]
[1727083352094,0.441399,63617.0,63616.0,0.14322923]
[1727083352494,0.54603545,63617.0,63616.0,0.0806]
[1727083354000,0.18523545,63617.0,63616.0,0.0806]
[1727083354205,0.48965209,63617.0,63616.0,0.0806]
[1727083354405,0.54603545,63617.0,63616.0,0.0806]
[1727083354619,0.54603545,63617.0,63616.0,0.002]
[1727083354904,0.64043545,63617.0,63616.0,0.002]
[1727083356106,0.84459285,63617.0,63616.0,0.002]
[1727083357210,0.64043545,63617.0,63616.0,0.002]
[1727083357900,0.84459285,63617.0,63616.0,0.002]
[1727083359501,0.48379285,63617.0,63616.0,0.002]
[1727083359805,0.78820949,63617.0,63616.0,0.002]
[1727083360002,0.48379285,63617.0,63616.0,0.002]
[1727083360305,0.41105309,63617.0,63616.0,0.0806]
[1727083360497,0.46743645,63617.0,63616.0,0.0806]
[1727083360703,0.3628,63617.0,63616.0,0.0806]
[1727083363820,0.3628,63617.0,63616.0,0.1592]
[1727083363821,0.002,63617.0,63616.0,0.1592]
[1727083364116,0.0037,63624.0,63623.0,0.078591]
[1727083364309,0.439383,63630.0,63624.0,0.07859]
[1727083364512,0.439383,63630.0,63625.0,0.0974]
[1727083364713,0.439383,63630.0,63629.0,0.078584]
[1727083364909,0.519383,63630.0,63629.0,0.078584]
[1727083366928,0.439383,63630.0,63629.0,0.079584]
[1727083367105,0.519383,63630.0,63629.0,0.079584]
[1727083367309,0.519383,63630.0,63629.0,0.080584]
[1727083367609,0.62400249,63630.0,63629.0,0.06947738]
[1727083367805,0.26320249,63630.0,63629.0,0.06947738]
[1727083368012,0.62400249,63630.0,63629.0,0.06947738]
[1727083369011,0.87491461,63630.0,63629.0,0.06947738]
[1727083372020,0.51411461,63630.0,63629.0,0.06947738]
[1727083372228,0.87491461,63630.0,63629.0,0.06947738]
[1727083372710,0.51411461,63630.0,63629.0,0.05996113]
[1727083372911,0.51411403,63630.0,63629.0,0.05996113]
[1727083373112,0.87491403,63630.0,63629.0,0.05996113]
[1727083373315,0.87491403,63630.0,63629.0,0.002]
[1727083375723,0.519383,63630.0,63629.0,0.002]
[1727083378717,0.078583,63630.0,63629.0,0.080584]
[1727083379025,0.158583,63630.0,63629.0,0.080584]
[1727083382728,0.08,63630.0,63629.0,0.080584]
[1727083382925,0.3608,63634.0,63633.0,0.078579]
[1727083383133,0.3608,63634.0,63633.0,0.158579]
[1727083384213,0.3608,63634.0,63633.0,0.159579]
[1727083385515,0.0008,63637.0,63636.0,0.078575]
[1727083385724,0.046,63640.0,63639.0,0.078572]
[1727083386230,0.12457,63640.0,63639.0,0.078572]
[1727083386420,0.20457,63640.0,63639.0,0.078572]
[1727083386935,0.20457,63640.0,63639.0,0.079572]
[1727083387136,0.20457,63640.0,63639.0,0.080572]
[1727083388832,0.126,63640.0,63639.0,0.080572]
[1727083389029,0.046,63640.0,63639.0,0.079572]
[1727083389223,0.046,63640.0,63639.0,0.080572]
[1727083390125,0.126,63640.0,63639.0,0.080572]
[1727083390317,0.046,63640.0,63639.0,0.080572]
[1727083390724,0.21509093,63640.0,63637.0,0.07071902]
[1727083390926,0.16909093,63639.0,63638.0,0.08]
[1727083391324,0.24170942,63639.0,63638.0,0.08]
[1727083392128,0.24170942,63639.0,63638.0,0.158573]
[1727083392529,0.24170942,63639.0,63638.0,0.159573]
[1727083393129,0.24270942,63639.0,63638.0,0.160573]
[1727083393532,0.17009093,63639.0,63638.0,0.160573]
[1727083395237,0.17009093,63639.0,63638.0,0.13817156]
[1727083395443,0.24270942,63639.0,63638.0,0.13817156]
[1727083395629,0.24270942,63639.0,63630.0,0.0037]
[1727083395630,0.57019367,63639.0,63630.0,0.0037]
[1727083395830,0.24170942,63638.0,63637.0,0.08]
[1727083396128,0.24171,63638.0,63637.0,0.08]
[1727083396944,0.24171,63638.0,63637.0,0.158574]
[1727083397840,0.0482368,63638.0,63637.0,0.158574]
[1727083398239,0.0492368,63638.0,63637.0,0.159574]
[1727083399649,0.001,63638.0,63637.0,0.159574]
[1727083400146,0.004,63638.0,63637.0,0.160574]
[1727083401629,0.082573,63638.0,63637.0,0.080574]
[1727083402336,0.079573,63638.0,63637.0,0.079574]
[1727083402536,0.079573,63638.0,63637.0,0.080574]
[1727083402537,0.081573,63638.0,63637.0,0.080574]
[1727083403851,0.003,63638.0,63637.0,0.080574]
[1727083405532,0.05123748,63638.0,63637.0,0.080574]
[1727083405743,0.17209533,63638.0,63637.0,0.002]
[1727083406252,0.17209533,63638.0,63637.0,0.080574]
[1727083406740,0.12385785,63638.0,63637.0,0.080574]
[1727083410851,0.12385785,63638.0,63637.0,0.078574]
[1727083412136,0.20243085,63638.0,63637.0,0.078574]
[1727083412645,0.161573,63638.0,63637.0,0.078574]
[1727083414042,0.081573,63638.0,63637.0,0.078574]
[1727083416750,0.081573,63638.0,63634.0,0.08]
[1727083416751,0.078578,63635.0,63634.0,0.078576]
[1727083417449,0.1361,63636.0,63635.0,0.078577]
[1727083417661,0.0493,63662.0,63636.0,0.078574]
[1727083417950,0.0493,63662.0,63661.0,0.08]
[1727083418340,0.0493,63662.0,63661.0,0.158544]
[1727083418858,0.0513,63662.0,63661.0,0.158544]
[1727083419051,0.0543,63662.0,63661.0,0.159544]
[1727083419351,0.0523,63662.0,63661.0,0.159544]
[1727083419656,0.0543,63662.0,63661.0,0.160544]
[1727083424352,0.0523,63662.0,63661.0,0.160544]
[1727083424560,0.08,63671.0,63661.0,0.160544]
[1727083424561,0.3608,63681.0,63679.0,0.078522]
[1727083424742,0.04821474,63680.0,63679.0,0.078522]
[1727083425062,0.078516,63685.0,63680.0,0.07852]
[1727083425253,0.097,63687.0,63675.0,0.3608]
[1727083425254,0.12672236,63684.0,63675.0,0.3608]
[1727083425453,0.3608,63681.0,63675.0,0.3608]
[1727083425656,0.001,63681.0,63679.0,0.001]
[1727083425852,0.3628,63681.0,63679.0,0.002]
[1727083426046,0.078532,63671.0,63670.0,0.0037]
[1727083426247,0.078543,63662.0,63661.0,0.0037]
[1727083426452,0.078543,63662.0,63651.0,0.439356]
[1727083426453,0.07855,63657.0,63651.0,0.078556]
[1727083426650,0.0451,63656.0,63652.0,0.08]
[1727083426951,0.128145,63661.0,63655.0,0.08]
[1727083426952,0.0496,63661.0,63655.0,0.08]
[1727083427155,0.0496,63661.0,63658.0,0.078548]
[1727083427457,0.128145,63661.0,63658.0,0.078548]
[1727083427653,0.078548,63658.0,63654.0,0.33659103]
[1727083427857,0.24759133,63657.0,63654.0,0.33659103]
[1727083428046,0.24759133,63657.0,63653.0,0.078554]
[1727083428047,0.16904133,63656.0,63653.0,0.078554]
[1727083428252,0.16904133,63655.0,63654.0,0.078553]
[1727083428648,0.12081941,63655.0,63650.0,0.08]
[1727083428851,0.33014452,63653.0,63648.0,0.3608]
[1727083429052,0.08,63649.0,63648.0,0.3608]
[1727083429251,0.08,63649.0,63648.0,0.43936]
[1727083429252,0.12081941,63649.0,63648.0,0.43936]
[1727083429857,0.12081941,63649.0,63648.0,0.07856]
[1727083430555,0.37111035,63649.0,63641.0,0.12829599]
[1727083430759,0.37111035,63648.0,63641.0,0.12829599]
[1727083430961,0.37111035,63647.0,63641.0,0.12829599]
[1727083431159,0.37111035,63646.0,63641.0,0.12829599]
[1727083431349,0.37111035,63645.0,63641.0,0.01917202]
[1727083431553,0.37111035,63644.0,63638.0,0.00235675]
[1727083431751,0.37111035,63643.0,63642.0,0.078568]
[1727083431962,0.37111035,63643.0,63642.0,0.208568]
[1727083432646,0.37111035,63643.0,63635.0,0.29582884]
[1727083432885,0.37111035,63642.0,63635.0,0.29582884]
[1727083433174,0.37111035,63641.0,63640.0,0.07857]
[1727083433664,0.37111035,63641.0,63640.0,1.14997]
[1727083434459,0.37111035,63641.0,63640.0,0.95109615]
[1727083434662,0.31476289,63641.0,63640.0,1.02966615]
[1727083434958,0.31476289,63641.0,63640.0,0.55826615]
[1727083435471,0.31476289,63641.0,63635.0,0.09113651]
[1727083435656,0.3608,63646.0,63645.0,0.078564]
[1727083436858,0.078571,63640.0,63635.0,0.09113651]
[1727083437063,0.48110385,63646.0,63638.0,0.078573]
[1727083437064,0.439373,63639.0,63638.0,0.078573]
[1727083437364,0.486373,63639.0,63638.0,0.078573]
[1727083437559,0.60667685,63639.0,63638.0,0.078573]
[1727083438967,0.52810385,63639.0,63638.0,0.078573]
[1727083440372,0.52810385,63639.0,63638.0,0.080573]
[1727083441465,0.4078,63639.0,63638.0,0.210573]
[1727083445870,0.047,63639.0,63638.0,0.210573]
[1727083449679,0.3608,63640.0,63639.0,0.157144]
[1727083450079,0.0037,63649.0,63640.0,0.07857]
[1727083450080,0.3608,63646.0,63640.0,0.07857]
[1727083450283,0.3608,63646.0,63645.0,0.13]
[1727083450474,0.3608,63646.0,63645.0,0.60136]
[1727083450679,0.3608,63646.0,63645.0,0.679924]
[1727083450981,0.3608,63646.0,63645.0,0.208564]
[1727083451677,0.3628,63646.0,63645.0,0.208564]
[1727083451982,0.3628,63646.0,63645.0,0.209564]
[1727083452483,0.3628,63646.0,63645.0,0.079564]
[1727083452679,0.3628,63646.0,63645.0,0.209564]
[1727083454272,0.002,63646.0,63645.0,0.288128]
[1727083454578,0.002,63646.0,63645.0,1.359488]
[1727083454981,0.0482,63653.0,63652.0,0.078556]
[1727083455377,0.082242,63663.0,63658.0,0.078548]
[1727083455682,0.52990385,63659.0,63658.0,0.078548]
[1727083456078,0.60845085,63659.0,63658.0,0.078548]
[1727083457182,0.52990385,63659.0,63658.0,0.078548]
[1727083457401,0.52990385,63659.0,63658.0,0.080548]
[1727083459090,0.59437223,63659.0,63658.0,0.080548]
[1727083459392,0.42526838,63659.0,63658.0,0.080548]
[1727083462191,0.3608,63659.0,63658.0,0.159096]
[1727083462587,0.3608,63659.0,63658.0,0.080548]
[1727083464383,0.42526838,63659.0,63658.0,0.080548]
[1727083465894,0.3608,63659.0,63658.0,0.080548]
[1727083468982,0.3608,63659.0,63658.0,0.210548]
[1727083470389,0.3608,63659.0,63658.0,0.160548]
[1727083472491,0.0037,63669.0,63665.0,0.07854]
[1727083472694,0.3608,63666.0,63665.0,0.15854]
[1727083472899,0.32150144,63666.0,63665.0,0.15854]
[1727083473692,0.32150144,63666.0,63665.0,0.16054]
[1727083475204,0.08,63672.0,63665.0,0.16054]
[1727083475205,0.0037,63673.0,63665.0,1.1532]
[1727083475397,0.078527,63675.0,63673.0,0.07853]
[1727083475600,0.078527,63675.0,63673.0,0.14085455]
[1727083477101,0.078522,63679.0,63673.0,0.07953]
[1727083477306,0.0939,63680.0,63673.0,0.07953]
[1727083477511,0.0939,63680.0,63673.0,0.15742348]
[1727083477712,0.0939,63680.0,63673.0,0.19921278]
[1727083478007,0.0939,63680.0,63673.0,0.27774278]
[1727083478211,0.0939,63680.0,63673.0,0.74990278]